fUSD/lending_fUSD_20250620
["ID","MTS","AMOUNT","RATE_DAILY","PERIOD"]
[366695997,1750415459577,-424.39933895,0.00025483,2]
[366695998,1750415459588,-500.0,0.00025488,4]
[366695999,1750415459597,-500.0,0.00025488,4]
[366696000,1750415459607,-293.08343306,0.00025489,4]
[366696001,1750415459617,-490.0,0.00025489,4]
[366696002,1750415459627,-490.0,0.00025489,4]
[366696003,1750415459637,-490.0,0.00025489,4]
[366696004,1750415459647,-490.0,0.00025489,4]
[366696005,1750415459657,-490.0,0.00025489,4]
[366696006,1750415459667,-490.0,0.00025489,4]
[366696007,1750415459677,-226.42919313,0.00025489,4]
[366696008,1750415459687,-490.0,0.00025489,4]
[366696009,1750415459698,-490.0,0.00025489,4]
[366696010,1750415459707,-427.60358001,0.00025489,4]
[366696011,1750415459718,-490.0,0.00025489,4]
[366696012,1750415459728,-490.0,0.00025489,4]
[366696013,1750415459738,-490.0,0.00025489,4]
[366696014,1750415459748,-490.0,0.00025489,4]
[366696015,1750415459758,-490.0,0.00025489,4]
[366696016,1750415459768,-263.76942342,0.00025489,4]
[366696017,1750415459779,-490.0,0.00025489,4]
[366696018,1750415459789,-490.0,0.00025489,4]
[366696019,1750415459799,-490.0,0.00025489,4]
[366696020,1750415459810,-218.02408767,0.00025489,4]
[366696021,1750415459820,-490.0,0.00025489,4]
[366696022,1750415459831,-490.0,0.00025489,4]
[366696023,1750415459842,-231.01673371,0.00025489,4]
[366696024,1750415459852,-490.0,0.00025489,4]
[366696025,1750415459862,-490.0,0.00025489,4]
[366696026,1750415459872,-490.0,0.00025489,4]
[366696027,1750415459882,-490.0,0.00025489,4]
[366696028,1750415459891,-490.0,0.00025489,4]
[366696029,1750415459901,-490.0,0.00025489,4]
[366696030,1750415459910,-490.0,0.00025489,4]
[366696031,1750415459920,-490.0,0.00025489,4]
[366696032,1750415459930,-490.61557102,0.00025489,4]
[366696033,1750415459940,-490.0,0.00025489,4]
[366696034,1750415459951,-490.0,0.00025489,4]
[366696035,1750415459961,-490.0,0.00025489,4]
[366696036,1750415459971,-433.99713541,0.00025489,4]
[366696037,1750415459981,-470.28609262,0.00025489,4]
[366696038,1750415459991,-490.0,0.00025489,4]
[366696039,1750415460002,-490.0,0.00025489,4]
[366696040,1750415460012,-490.0,0.00025489,4]
[366696041,1750415460023,-490.0,0.00025489,4]
[366696042,1750415460033,-490.0,0.00025489,4]
[366696043,1750415460044,-490.0,0.00025489,4]
[366696044,1750415460054,-490.0,0.00025489,4]
[366696045,1750415460065,-490.0,0.00025489,4]
[366696046,1750415460075,-490.0,0.00025489,4]
[366696047,1750415460086,-490.0,0.00025489,4]
[366696048,1750415460096,-490.0,0.00025489,4]
[366696049,1750415460108,-490.0,0.00025489,4]
[366696050,1750415460118,-490.0,0.00025489,4]
[366696051,1750415460129,-490.0,0.00025489,4]
[366696052,1750415460140,-490.0,0.00025489,4]
[366696053,1750415460151,-501.03332058,0.00025489,4]
[366696054,1750415460161,-490.0,0.00025489,4]
[366696055,1750415460173,-490.0,0.00025489,4]
[366696056,1750415460184,-490.0,0.00025489,4]
[366696057,1750415460304,-490.0,0.00025489,4]
[366696058,1750415460314,-490.0,0.00025489,4]
[366696059,1750415460324,-490.0,0.00025489,4]
[366696060,1750415460334,-406.50091307,0.00025489,4]
[366696061,1750415460344,-490.0,0.00025489,4]
[366696062,1750415460354,-490.0,0.00025489,4]
[366696063,1750415460363,-709.67,0.00025489,4]
[366696064,1750415460373,-490.0,0.00025489,4]
[366696065,1750415460383,-490.0,0.00025489,4]
[366696066,1750415460393,-490.0,0.00025489,4]
[366696067,1750415460404,-490.0,0.00025489,4]
[366696068,1750415460413,-490.0,0.00025489,4]
[366696069,1750415460424,-490.0,0.00025489,4]
[366696070,1750415460434,-716.73,0.00025489,4]
[366696071,1750415460444,-490.0,0.00025489,4]
[366696072,1750415460454,-490.0,0.00025489,4]
[366696073,1750415460464,-490.0,0.00025489,4]
[366696074,1750415460473,-879.88,0.00025489,4]
[366696075,1750415460483,-490.0,0.00025489,4]
[366696076,1750415460492,-490.0,0.00025489,4]
[366696077,1750415460502,-490.0,0.00025489,4]
[366696078,1750415460511,-490.0,0.00025489,4]
[366696079,1750415460520,-490.0,0.00025489,4]
[366696080,1750415460530,-490.0,0.00025489,4]
[366696081,1750415460539,-490.0,0.00025489,4]
[366696082,1750415460548,-490.0,0.00025489,4]
[366696083,1750415460558,-490.0,0.00025489,4]
[366696084,1750415460567,-490.0,0.00025489,4]
[366696085,1750415460578,-490.0,0.00025489,4]
[366696086,1750415460587,-490.0,0.00025489,4]
[366696087,1750415460597,-490.0,0.00025489,4]
[366696088,1750415460606,-490.0,0.00025489,4]
[366696089,1750415460616,-490.0,0.00025489,4]
[366696090,1750415460626,-490.0,0.00025489,4]
[366696091,1750415460635,-490.0,0.00025489,4]
[366696092,1750415460645,-500.0,0.00025489,4]
[366696093,1750415460654,-490.0,0.00025489,4]
[366696094,1750415460664,-1218.9,0.00025489,4]
[366696095,1750415460673,-901.28,0.00025489,4]
[366696096,1750415460683,-507.19,0.00025489,4]
[366696097,1750415460692,-490.0,0.00025489,4]
[366696098,1750415460702,-490.0,0.00025489,4]
[366696099,1750415460712,-490.0,0.00025489,4]
[366696100,1750415460721,-584.6,0.00025489,4]
[366696101,1750415460730,-490.0,0.00025489,4]
[366696102,1750415460739,-490.0,0.00025489,4]
[366696103,1750415460750,-490.0,0.00025489,4]
[366696104,1750415460760,-490.0,0.00025489,4]
[366696105,1750415460769,-490.0,0.00025489,4]
[366696106,1750415460779,-490.0,0.00025489,4]
[366696107,1750415460789,-490.0,0.00025489,4]
[366696108,1750415460799,-490.0,0.00025489,4]
[366696109,1750415460808,-490.0,0.00025489,4]
[366696110,1750415460817,-490.0,0.00025489,4]
[366696111,1750415460827,-490.0,0.00025489,4]
[366696112,1750415460838,-490.0,0.00025489,4]
[366696113,1750415460847,-490.0,0.00025489,4]
[366696114,1750415460858,-490.0,0.00025489,4]
[366696115,1750415460867,-203.45740815,0.00025489,4]
[366696116,1750415460877,-490.0,0.00025489,4]
[366696117,1750415460886,-624.83,0.00025489,4]
[366696118,1750415460895,-490.0,0.00025489,4]
[366696119,1750415460905,-490.0,0.00025489,4]
[366696120,1750415460914,-490.0,0.00025489,4]
[366696121,1750415460925,-947.23,0.00025489,4]
[366696122,1750415460935,-497.34,0.00025489,4]
[366696123,1750415460945,-1160.0,0.00025489,4]
[366696124,1750415460955,-682.25,0.00025489,4]
[366696125,1750415460964,-490.0,0.00025489,4]
[366696126,1750415460974,-676.69,0.00025489,4]
[366696127,1750415460983,-490.0,0.00025489,4]
[366696128,1750415460994,-798.57,0.00025489,4]
[366696129,1750415461003,-490.0,0.00025489,4]
[366696130,1750415461013,-490.0,0.00025489,4]
[366696131,1750415461022,-490.0,0.00025489,4]
[366696132,1750415461031,-522.84576709,0.00025489,4]
[366696133,1750415461041,-500.0,0.00025489,4]
[366696134,1750415461052,-490.0,0.00025489,4]
[366696135,1750415461063,-490.0,0.00025489,4]
[366696136,1750415461073,-490.0,0.00025489,4]
[366696137,1750415461082,-490.0,0.00025489,4]
[366696138,1750415461091,-490.0,0.00025489,4]
[366696139,1750415461102,-490.0,0.00025489,4]
[366696140,1750415461112,-994.26,0.00025489,4]
[366696141,1750415461122,-490.0,0.00025489,4]
[366696142,1750415461131,-490.0,0.00025489,4]
[366696143,1750415461141,-490.0,0.00025489,4]
[366696144,1750415461151,-504.86,0.00025489,4]
[366696145,1750415461160,-490.0,0.00025489,4]
[366696146,1750415461170,-1262.16,0.00025489,4]
[366696147,1750415461179,-607.31128931,0.00025489,4]
[366696148,1750415461189,-490.0,0.00025489,4]
[366696149,1750415461199,-300.0,0.00025489,4]
[366696150,1750415461209,-526.89,0.00025489,4]
[366696151,1750415461218,-490.0,0.00025489,4]
[366696152,1750415461228,-490.0,0.00025489,4]
[366696153,1750415461238,-490.0,0.00025489,4]
[366696154,1750415461247,-562.08,0.00025489,4]
[366696155,1750415461257,-490.0,0.00025489,4]
[366696156,1750415461266,-477.50848058,0.00025489,4]
[366696157,1750415461276,-545.75,0.00025489,4]
[366696158,1750415461285,-601.35530361,0.00025489,4]
[366696159,1750415461295,-1061.69,0.00025489,4]
[366696160,1750415461304,-490.0,0.00025489,4]
[366696161,1750415461314,-809.96,0.00025489,4]
[366696162,1750415461324,-631.0,0.00025489,4]
[366696163,1750415461334,-490.0,0.00025489,4]
[366696164,1750415461343,-1378.13,0.00025489,4]
[366696165,1750415461353,-490.0,0.00025489,4]
[366696166,1750415461362,-490.0,0.00025489,4]
[366696167,1750415461372,-490.0,0.00025489,4]
[366696168,1750415461381,-490.0,0.00025489,4]
[366696169,1750415461390,-490.0,0.00025489,4]
[366696170,1750415461400,-559.26,0.00025489,4]
[366696171,1750415461409,-490.0,0.00025489,4]
[366696172,1750415461418,-490.0,0.00025489,4]
[366696173,1750415461427,-490.0,0.00025489,4]
[366696174,1750415461437,-707.03,0.00025489,4]
[366696175,1750415461447,-490.0,0.00025489,4]
[366696176,1750415461456,-490.0,0.00025489,4]
[366696177,1750415461466,-490.0,0.00025489,4]
[366696178,1750415461475,-490.0,0.00025489,4]
[366696179,1750415461484,-490.0,0.00025489,4]
[366696180,1750415461494,-2021.51,0.00025489,4]
[366696181,1750415461503,-547.36,0.00025489,4]
[366696182,1750415461514,-1831.85,0.00025489,4]
[366696183,1750415461523,-606.95,0.00025489,4]
[366696184,1750415461533,-490.0,0.00025489,4]
[366696185,1750415461542,-1476.65,0.00025489,4]
[366696186,1750415461552,-490.0,0.00025489,4]
[366696187,1750415461561,-490.0,0.00025489,4]
[366696188,1750415461571,-490.0,0.00025489,4]
[366696189,1750415461580,-490.0,0.00025489,4]
[366696190,1750415461590,-490.0,0.00025489,4]
[366696191,1750415461599,-490.0,0.00025489,4]
[366696192,1750415461609,-490.0,0.00025489,4]
[366696193,1750415461619,-600.95,0.00025489,4]
[366696194,1750415461628,-490.0,0.00025489,4]
[366696195,1750415461638,-1005.12,0.00025489,4]
[366696196,1750415461648,-305.89401199,0.00025489,4]
[366696197,1750415461657,-1516.56,0.00025489,4]
[366696198,1750415461667,-490.0,0.00025489,4]
[366696199,1750415461676,-490.0,0.00025489,4]
[366696200,1750415461686,-490.0,0.00025489,4]
[366696201,1750415461696,-490.0,0.00025489,4]
[366696202,1750415461705,-490.0,0.00025489,4]
[366696203,1750415461714,-302.3,0.00025489,4]
[366696204,1750415461724,-490.0,0.00025489,4]
[366696205,1750415461733,-490.0,0.00025489,4]
[366696206,1750415461743,-1853.92,0.00025489,4]
[366696207,1750415461753,-490.0,0.00025489,4]
[366696208,1750415461762,-490.0,0.00025489,4]
[366696209,1750415461772,-1207.48,0.00025489,4]
[366696210,1750415461781,-428.97928821,0.00025489,4]
[366696211,1750415461791,-970.42,0.00025489,4]
[366696212,1750415461800,-490.0,0.00025489,4]
[366696213,1750415461810,-1085.47,0.00025489,4]
[366696214,1750415461819,-555.86,0.00025489,4]
[366696215,1750415461829,-1321.89,0.00025489,4]
[366696216,1750415461839,-590.49,0.00025489,4]
[366696217,1750415461848,-490.0,0.00025489,4]
[366696218,1750415461858,-907.27,0.00025489,4]
[366696219,1750415461867,-490.0,0.00025489,4]
[366696220,1750415461877,-490.0,0.00025489,4]
[366696221,1750415461887,-490.0,0.00025489,4]
[366696222,1750415461897,-490.0,0.00025489,4]
[366696223,1750415461906,-490.0,0.00025489,4]
[366696224,1750415461915,-490.0,0.00025489,4]
[366696225,1750415461925,-600.96,0.00025489,4]
[366696226,1750415461934,-490.0,0.00025489,4]
[366696227,1750415461943,-490.0,0.00025489,4]
[366696228,1750415461953,-490.0,0.00025489,4]
[366696229,1750415461963,-490.0,0.00025489,4]
[366696230,1750415461972,-1835.37,0.00025489,4]
[366696231,1750415461981,-490.0,0.00025489,4]
[366696232,1750415461991,-490.0,0.00025489,4]
[366696233,1750415462001,-1052.99,0.00025489,4]
[366696234,1750415462011,-556.59,0.00025489,4]
[366696235,1750415462021,-490.0,0.00025489,4]
[366696236,1750415462031,-567.01,0.00025489,4]
[366696237,1750415462040,-492.0,0.00025489,4]
[366696238,1750415462050,-819.36,0.00025489,4]
[366696239,1750415462062,-2175.07,0.00025489,4]
[366696240,1750415462072,-490.0,0.00025489,4]
[366696241,1750415462082,-789.56,0.00025489,4]
[366696242,1750415462092,-1474.82,0.00025489,4]
[366696243,1750415462102,-490.0,0.00025489,4]
[366696244,1750415462113,-263.70830843,0.00025489,4]
[366696245,1750415462122,-490.0,0.00025489,4]
[366696246,1750415462132,-1752.57,0.00025489,4]
[366696247,1750415462141,-490.0,0.00025489,4]
[366696248,1750415462151,-490.0,0.00025489,4]
[366696249,1750415462162,-490.0,0.00025489,4]
[366696250,1750415462172,-490.0,0.00025489,4]
[366696251,1750415462182,-2581.66,0.00025489,4]
[366696252,1750415462192,-490.0,0.00025489,4]
[366696253,1750415462202,-1705.52,0.00025489,4]
[366696254,1750415462212,-490.0,0.00025489,4]
[366696255,1750415462221,-490.0,0.00025489,4]
[366696256,1750415462231,-583.02696794,0.00025489,4]
[366696257,1750415462241,-1306.7,0.00025489,4]
[366696258,1750415462250,-490.0,0.00025489,4]
[366696259,1750415462260,-525.6,0.00025489,4]
[366696260,1750415462278,-490.0,0.00025489,4]
[366696261,1750415462287,-737.94,0.00025489,4]
[366696262,1750415462297,-490.0,0.00025489,4]
[366696263,1750415462307,-490.0,0.00025489,4]
[366696264,1750415462317,-490.0,0.00025489,4]
[366696265,1750415462327,-616.11,0.00025489,4]
[366696266,1750415462337,-749.2,0.00025489,4]
[366696267,1750415462346,-490.0,0.00025489,4]
[366696268,1750415462356,-490.0,0.00025489,4]
[366696269,1750415462366,-733.41,0.00025489,4]
[366696270,1750415462376,-1450.49,0.00025489,4]
[366696271,1750415462385,-490.0,0.00025489,4]
[366696272,1750415462396,-2517.34,0.00025489,4]
[366696273,1750415462405,-490.0,0.00025489,4]
[366696274,1750415462415,-490.0,0.00025489,4]
[366696275,1750415462425,-647.98,0.00025489,4]
[366696276,1750415462435,-1420.61,0.00025489,4]
[366696277,1750415462445,-490.0,0.00025489,4]
[366696278,1750415462455,-513.35920917,0.00025489,4]
[366696279,1750415462465,-666.21,0.00025489,4]
[366696280,1750415462475,-490.0,0.00025489,4]
[366696281,1750415462484,-798.3,0.00025489,4]
[366696282,1750415462494,-490.0,0.00025489,4]
[366696283,1750415462504,-490.0,0.00025489,4]
[366696284,1750415462513,-490.0,0.00025489,4]
[366696285,1750415462524,-490.0,0.00025489,4]
[366696286,1750415462534,-490.0,0.00025489,4]
[366696287,1750415462543,-490.0,0.00025489,4]
[366696288,1750415462553,-490.0,0.00025489,4]
[366696289,1750415462563,-629.3,0.00025489,4]
[366696290,1750415462572,-744.22,0.00025489,4]
[366696291,1750415462582,-490.0,0.00025489,4]
[366696292,1750415462591,-500.0,0.00025489,4]
[366696293,1750415462601,-824.71,0.00025489,4]
[366696294,1750415462611,-452.36997526,0.00025489,4]
[366696295,1750415462621,-490.0,0.00025489,4]
[366696296,1750415462631,-1579.86,0.00025489,4]
[366696297,1750415462640,-490.0,0.00025489,4]
[366696298,1750415462650,-445.05333035,0.00025489,4]
[366696299,1750415462660,-490.0,0.00025489,4]
[366696300,1750415462669,-490.0,0.00025489,4]
[366696301,1750415462679,-1499.44,0.00025489,4]
[366696302,1750415462688,-509.05,0.00025489,4]
[366696303,1750415462698,-2238.49,0.00025489,4]
[366696304,1750415462708,-490.0,0.00025489,4]
[366696305,1750415462718,-490.0,0.00025489,4]
[366696306,1750415462727,-490.0,0.00025489,4]
[366696307,1750415462737,-597.0,0.00025489,4]
[366696308,1750415462747,-490.0,0.00025489,4]
[366696309,1750415462756,-490.0,0.00025489,4]
[366696310,1750415462766,-490.0,0.00025489,4]
[366696311,1750415462776,-1038.4,0.00025489,4]
[366696312,1750415462786,-933.51,0.00025489,4]
[366696313,1750415462796,-490.0,0.00025489,4]
[366696314,1750415462806,-490.0,0.00025489,4]
[366696315,1750415462816,-822.58,0.00025489,4]
[366696316,1750415462826,-838.77,0.00025489,4]
[366696317,1750415462836,-504.68,0.00025489,4]
[366696318,1750415462846,-490.0,0.00025489,4]
[366696319,1750415462856,-507.81,0.00025489,4]
[366696320,1750415462866,-490.0,0.00025489,4]
[366696321,1750415462875,-490.0,0.00025489,4]
[366696322,1750415462885,-572.5,0.00025489,4]
[366696323,1750415462895,-490.0,0.00025489,4]
[366696324,1750415462905,-490.0,0.00025489,4]
[366696325,1750415462914,-1129.55,0.00025489,4]
[366696326,1750415462924,-858.91,0.00025489,4]
[366696327,1750415462934,-490.0,0.00025489,4]
[366696328,1750415462943,-800.69,0.00025489,4]
[366696329,1750415462953,-1036.77,0.00025489,4]
[366696330,1750415462962,-490.0,0.00025489,4]
[366696331,1750415462972,-490.0,0.00025489,4]
[366696332,1750415462982,-1310.63,0.00025489,4]
[366696333,1750415462991,-490.0,0.00025489,4]
[366696334,1750415463001,-617.26212656,0.00025489,4]
[366696335,1750415463011,-867.83,0.00025489,4]
[366696336,1750415463020,-490.0,0.00025489,4]
[366696337,1750415463030,-621.17314215,0.00025489,4]
[366696338,1750415463040,-545.19,0.00025489,4]
[366696339,1750415463050,-1236.78,0.00025489,4]
[366696340,1750415463063,-490.0,0.00025489,4]
[366696341,1750415463074,-490.0,0.00025489,4]
[366696342,1750415463085,-423.03030602,0.00025489,4]
[366696343,1750415463095,-490.0,0.00025489,4]
[366696344,1750415463106,-530.66792609,0.00025489,4]
[366696345,1750415463117,-490.0,0.00025489,4]
[366696346,1750415463126,-490.0,0.00025489,4]
[366696347,1750415463136,-490.0,0.00025489,4]
[366696348,1750415463148,-509.27,0.00025489,4]
[366696349,1750415463158,-490.0,0.00025489,4]
[366696350,1750415463168,-490.0,0.00025489,4]
[366696351,1750415463178,-1804.01,0.00025489,4]
[366696352,1750415463189,-490.0,0.00025489,4]
[366696353,1750415463199,-321.03104183,0.00025489,4]
[366696354,1750415463208,-490.0,0.00025489,4]
[366696355,1750415463218,-490.0,0.00025489,4]
[366696356,1750415463227,-1718.47,0.00025489,4]
[366696357,1750415463237,-500.0,0.00025489,4]
[366696358,1750415463246,-490.0,0.00025489,4]
[366696359,1750415463256,-528.49,0.00025489,4]
[366696360,1750415463266,-490.0,0.00025489,4]
[366696361,1750415463276,-808.69,0.00025489,4]
[366696362,1750415463287,-490.0,0.00025489,4]
[366696363,1750415463296,-490.0,0.00025489,4]
[366696364,1750415463306,-490.0,0.00025489,4]
[366696365,1750415463316,-490.0,0.00025489,4]
[366696366,1750415463326,-726.13,0.00025489,4]
[366696367,1750415463335,-490.0,0.00025489,4]
[366696368,1750415463346,-490.0,0.0002549,4]
[366696369,1750415463355,-490.0,0.0002549,4]
[366696370,1750415463366,-924.0,0.0002549,4]
[366696371,1750415463376,-490.0,0.0002549,4]
[366696372,1750415463386,-490.0,0.0002549,4]
[366696373,1750415463396,-490.0,0.0002549,4]
[366696374,1750415463406,-490.0,0.0002549,4]
[366696375,1750415463416,-490.0,0.0002549,4]
[366696376,1750415463427,-490.0,0.0002549,4]
[366696377,1750415463438,-555.64,0.0002549,4]
[366696378,1750415463448,-490.0,0.0002549,4]
[366696379,1750415463458,-560.67,0.0002549,4]
[366696380,1750415463469,-714.6,0.0002549,4]
[366696381,1750415463479,-490.0,0.0002549,4]
[366696382,1750415463490,-490.0,0.0002549,4]
[366696383,1750415463500,-584.97,0.0002549,4]
[366696384,1750415463510,-490.0,0.0002549,4]
[366696385,1750415463520,-528.72,0.0002549,4]
[366696386,1750415463530,-490.0,0.0002549,4]
[366696387,1750415463540,-490.0,0.0002549,4]
[366696388,1750415463550,-490.0,0.0002549,4]
[366696389,1750415463560,-490.0,0.0002549,4]
[366696390,1750415463569,-490.0,0.0002549,4]
[366696391,1750415463579,-490.0,0.0002549,4]
[366696392,1750415463589,-490.0,0.0002549,4]
[366696393,1750415463598,-490.0,0.0002549,4]
[366696394,1750415463608,-490.0,0.0002549,4]
[366696395,1750415463618,-490.0,0.0002549,4]
[366696396,1750415463628,-595.37,0.0002549,4]
[366696397,1750415463638,-117905.85616112,0.0002549,2]
[366696398,1750415463647,-311.3287456,0.00025496,2]
[366696399,1750415463658,-424.39933895,0.00025498,2]
[366696400,1750415463668,-424.39933895,0.00025514,2]
[366696401,1750415463678,-500.0,0.00025519,4]
[366696402,1750415463688,-500.0,0.00025519,4]
[366696403,1750415463697,-1038.4,0.00025519,4]
[366696404,1750415463707,-3334.0,0.00025523,2]
[366696405,1750415463717,-946.0,0.00025523,2]
[366696406,1750415463727,-424.39933895,0.00025529,2]
[366696407,1750415463737,-1296.61652358,0.00025544,2]
[366696408,1750415463746,-424.39933895,0.00025545,2]
[366696409,1750415463756,-424.39933895,0.0002556,2]
[366696410,1750415463766,-424.39933895,0.00025576,2]
[366696411,1750415463775,-424.39933895,0.00025591,2]
[366696412,1750415463785,-500.0,0.00025598,4]
[366696413,1750415463795,-500.0,0.00025598,4]
[366696414,1750415463804,-1038.4,0.00025598,4]
[366696415,1750415463814,-11521.38,0.000256,2]
[366696416,1750415463824,-1166.66667,0.000256,2]
[366696417,1750415463834,-150.0,0.00025606,2]
[366696418,1750415463844,-500.0,0.00025606,4]
[366696419,1750415463854,-500.0,0.00025606,4]
[366696420,1750415463864,-424.39933895,0.00025607,2]
[366696421,1750415463874,-1308.218009,0.00025607,7]
[366696422,1750415463885,-1308.218009,0.00025607,7]
[366696423,1750415463895,-265.133309,0.00025607,7]
[366696424,1750415463906,-265.133309,0.00025607,7]
[366696425,1750415463917,-1979.221241,0.00025607,7]
[366696426,1750415463928,-1979.221241,0.00025607,7]
[366696427,1750415463939,-439.198607,0.00025607,7]
[366696428,1750415463949,-439.198607,0.00025607,7]
[366696429,1750415463960,-500.0,0.00025608,4]
[366696430,1750415463971,-500.0,0.00025608,4]
[366696431,1750415463980,-500.0,0.00025608,4]
[366696432,1750415463991,-1038.4,0.00025608,4]
[366696433,1750415464000,-500.0,0.00025608,4]
[366696434,1750415464010,-151.0,0.00025609,7]
[366696435,1750415464021,-151.0,0.00025609,7]
[366696436,1750415464031,-151.0,0.00025609,7]
[366696437,1750415464043,-351.172876,0.00025609,7]
[366696438,1750415464054,-351.172876,0.00025609,7]
[366696439,1750415464065,-1859.624859,0.00025609,7]
[366696440,1750415464076,-1859.624859,0.00025609,7]
[366696441,1750415464087,-274.173819,0.00025609,7]
[366696442,1750415464097,-274.173819,0.00025609,7]
[366696443,1750415464107,-2551.478634,0.00025609,7]
[366696444,1750415464118,-2551.478634,0.00025609,7]
[366696445,1750415464127,-151.775814,0.00025609,7]
[366696446,1750415464137,-151.0,0.00025609,7]
[366696447,1750415464147,-584.193166,0.00025609,7]
[366696448,1750415464158,-584.193166,0.00025609,7]
[366696449,1750415464170,-294.655675,0.00025609,7]
[366696450,1750415464180,-294.655675,0.00025609,7]
[366696451,1750415464191,-201.015627,0.00025609,7]
[366696452,1750415464201,-201.015627,0.00025609,7]
[366696453,1750415464212,-224.030406,0.00025609,7]
[366696454,1750415464224,-224.030406,0.00025609,7]
[366696455,1750415464234,-155.529264,0.00025609,7]
[366696456,1750415464244,-155.529264,0.00025609,7]
[366696457,1750415464254,-10000.0,0.00025609,7]
[366696458,1750415464264,-10000.0,0.00025609,7]
[366696459,1750415464274,-10000.0,0.00025609,7]
[366696460,1750415464284,-10000.0,0.00025609,7]
[366696461,1750415464294,-209.914755,0.00025609,7]
[366696462,1750415464304,-209.914755,0.00025609,7]
[366696463,1750415464315,-243.405194,0.00025609,7]
[366696464,1750415464324,-243.405194,0.00025609,7]
[366696465,1750415464336,-985.154821,0.00025609,7]
[366696466,1750415464347,-985.154821,0.00025609,7]
[366696467,1750415464357,-834.11677829,0.00025609,7]
[366696468,1750415464368,-1180.663306,0.00025609,7]
[366696469,1750415464378,-178.980671,0.00025609,7]
[366696470,1750415464388,-1180.663306,0.00025609,7]
[366696471,1750415464399,-178.980671,0.00025609,7]
[366696472,1750415464409,-242.497975,0.00025609,7]
[366696473,1750415464419,-242.497975,0.00025609,7]
[366696474,1750415464429,-821.954408,0.00025609,7]
[366696475,1750415464440,-821.954408,0.00025609,7]
[366696476,1750415464450,-1296.61652358,0.0002561,2]
[366696477,1750415464460,-151.0,0.0002561,7]
[366696478,1750415464470,-151.0,0.0002561,7]
[366696479,1750415464480,-151.0,0.0002561,7]
[366696480,1750415464489,-151.0,0.0002561,7]
[366696481,1750415464500,-151.0,0.0002561,7]
[366696482,1750415464509,-151.0,0.0002561,7]
[366696483,1750415464650,-151.0,0.0002561,7]
[366696484,1750415464661,-351.172876,0.0002561,7]
[366696485,1750415464672,-351.172876,0.0002561,7]
[366696486,1750415464683,-379.19163,0.0002561,7]
[366696487,1750415464693,-379.19163,0.0002561,7]
[366696488,1750415464703,-274.173819,0.0002561,7]
[366696489,1750415464713,-274.173819,0.0002561,7]
[366696490,1750415464723,-163.85551,0.0002561,7]
[366696491,1750415464733,-163.85551,0.0002561,7]
[366696492,1750415464744,-2551.478634,0.0002561,7]
[366696493,1750415464754,-2551.478634,0.0002561,7]
[366696494,1750415464764,-151.0,0.0002561,7]
[366696495,1750415464774,-344.384195,0.0002561,7]
[366696496,1750415464785,-344.384195,0.0002561,7]